bitfinex-derivatives/quotes_BTCF0:USTF0_20260104
["timestamp","ask_amount","ask_price","bid_price","bid_amount"]
[1767563615164,0.02808868,91284.0,91269.0,0.010961]
[1767563615365,0.02808868,91283.0,91269.0,0.010961]
[1767563615576,0.02808868,91282.0,91269.0,0.010961]
[1767563615778,0.02808868,91281.0,91269.0,0.010961]
[1767563616077,0.03390694,91285.0,91269.0,0.010961]
[1767563616276,0.02808694,91284.0,91269.0,0.010961]
[1767563616481,0.02808694,91283.0,91269.0,0.010961]
[1767563616777,0.02808694,91282.0,91269.0,0.010961]
[1767563616978,0.02808694,91281.0,91269.0,0.010961]
[1767563617170,0.03390694,91285.0,91269.0,0.010961]
[1767563617370,0.03725137,91284.0,91269.0,0.010961]
[1767563617669,0.02798102,91283.0,91269.0,0.010961]
[1767563617968,0.02798102,91282.0,91269.0,0.010961]
[1767563618167,0.02798102,91281.0,91269.0,0.010961]
[1767563618370,0.00927035,91284.0,91269.0,0.010961]
[1767563618569,0.02797949,91283.0,91269.0,0.010961]
[1767563618785,0.02797949,91282.0,91269.0,0.010961]
[1767563618976,0.02797949,91281.0,91269.0,0.010961]
[1767563619177,0.00927035,91284.0,91269.0,0.010961]
[1767563619381,0.02797909,91283.0,91269.0,0.010961]
[1767563619677,0.02797909,91282.0,91269.0,0.010961]
[1767563619879,0.02797909,91281.0,91269.0,0.010961]
[1767563620068,0.00927035,91284.0,91269.0,0.010961]
[1767563620269,0.02797925,91283.0,91269.0,0.010961]
[1767563620469,0.02797925,91282.0,91269.0,0.010961]
[1767563620672,0.02797925,91281.0,91269.0,0.010961]
[1767563620871,0.00927035,91284.0,91269.0,0.010961]
[1767563621070,0.02797933,91283.0,91269.0,0.010961]
[1767563621270,0.02797933,91282.0,91269.0,0.010961]
[1767563621471,0.02797933,91281.0,91269.0,0.010961]
[1767563621771,0.00927035,91284.0,91269.0,0.010961]
[1767563622072,0.02797934,91283.0,91269.0,0.010961]
[1767563622272,0.02797934,91282.0,91269.0,0.010961]
[1767563622473,0.00927035,91284.0,91269.0,0.010961]
[1767563622682,0.0279081,91283.0,91269.0,0.010961]
[1767563622979,0.0279081,91282.0,91269.0,0.010961]
[1767563623182,0.00927035,91284.0,91269.0,0.010961]
[1767563623183,0.02790812,91281.0,91269.0,0.010961]
[1767563623382,0.02790812,91280.0,91269.0,0.010961]
[1767563623567,0.02790812,91279.0,91269.0,0.010961]
[1767563623882,0.00927035,91284.0,91266.0,0.104161]
[1767563624084,0.02790818,91283.0,91266.0,0.104161]
[1767563624383,0.02790818,91282.0,91266.0,0.104161]
[1767563624573,0.02790818,91281.0,91266.0,0.104161]
[1767563624773,0.02790818,91280.0,91266.0,0.104161]
[1767563624973,0.02790818,91279.0,91266.0,0.104161]
[1767563625174,0.00927035,91284.0,91266.0,0.104161]
[1767563625375,0.02790838,91283.0,91266.0,0.104161]
[1767563625585,0.02790838,91282.0,91266.0,0.104161]
[1767563625776,0.02790838,91281.0,91266.0,0.104161]
[1767563625974,0.02790838,91280.0,91266.0,0.104161]
[1767563626175,0.02790838,91279.0,91266.0,0.104161]
[1767563626375,0.00927035,91284.0,91269.0,0.010961]
[1767563626584,0.0279087,91283.0,91269.0,0.010961]
[1767563626784,0.0279087,91282.0,91269.0,0.010961]
[1767563626989,0.0279087,91281.0,91269.0,0.010961]
[1767563627181,0.0279087,91280.0,91269.0,0.010961]
[1767563627483,0.0279087,91279.0,91269.0,0.010961]
[1767563627684,0.00927035,91284.0,91269.0,0.010961]
[1767563627887,0.02790863,91283.0,91269.0,0.010961]
[1767563628076,0.02790863,91282.0,91271.0,0.0340901]
[1767563628383,0.05912613,91310.0,91290.0,0.0340901]
[1767563628588,0.00927035,91310.0,91290.0,0.0340901]
[1767563628773,0.05901228,91314.0,91296.0,0.02451636]
[1767563628977,0.0932,91313.0,91297.0,0.00957374]
[1767563629379,0.03463852,91318.0,91297.0,0.00957374]
[1767563629380,0.05901228,91317.0,91297.0,0.03957374]
[1767563629678,0.10247035,91316.0,91297.0,0.00957374]
[1767563629876,0.00927035,91313.0,91293.0,0.00957374]
[1767563630083,0.02536817,91314.0,91295.0,0.00957374]
[1767563630285,0.00927035,91315.0,91297.0,0.00957374]
[1767563630493,0.00927035,91315.0,91296.0,0.02451636]
[1767563631478,0.00927035,91315.0,91296.0,0.0340901]
[1767563636592,0.11856817,91316.0,91298.0,0.00957374]
[1767563636789,0.0932,91316.0,91302.0,0.010957]
[1767563637090,0.00219014,91319.0,91307.0,0.00957374]
[1767563637988,0.00219014,91319.0,91311.0,0.00957374]
[1767563638190,0.104114,91327.0,91312.0,0.00957374]
[1767563638396,0.504114,91327.0,91313.0,0.00957374]
[1767563638984,0.504114,91327.0,91309.0,0.00957374]
[1767563639184,0.104114,91327.0,91309.0,0.00957374]
[1767563640293,0.02768091,91326.0,91309.0,0.00957374]
[1767563640494,0.02768091,91325.0,91309.0,0.00957374]
[1767563640693,0.02768091,91324.0,91309.0,0.00957374]
[1767563640991,0.02085068,91322.0,91303.0,0.010957]
[1767563641193,0.02432583,91323.0,91304.0,0.00972716]
[1767563641385,0.00989568,91325.0,91306.0,0.00972716]
[1767563641581,0.02767534,91324.0,91306.0,0.00972716]
[1767563641784,0.02767534,91323.0,91306.0,0.00972716]
[1767563641997,0.00989568,91325.0,91306.0,0.00972716]
[1767563642185,0.02767526,91324.0,91306.0,0.00972716]
[1767563642389,0.00989568,91325.0,91306.0,0.00972716]
[1767563642587,0.010954,91326.0,91306.0,0.00972716]
[1767563642588,0.02767165,91324.0,91308.0,0.00972716]
[1767563642787,0.010954,91326.0,91308.0,0.00972716]
[1767563642994,0.02767162,91325.0,91308.0,0.00972716]
[1767563643297,0.02767162,91324.0,91309.0,0.02068316]
[1767563643498,0.09316,91327.0,91309.0,0.02068316]
[1767563643798,0.02766889,91326.0,91309.0,0.02068316]
[1767563643998,0.02766889,91325.0,91309.0,0.02068316]
[1767563644298,0.09316,91327.0,91309.0,0.02068316]
[1767563644498,0.02757293,91326.0,91309.0,0.02068316]
[1767563644699,0.02757293,91325.0,91309.0,0.02068316]
[1767563644896,0.09316,91327.0,91309.0,0.02068316]
[1767563645089,0.02757289,91326.0,91309.0,0.02068316]
[1767563645286,0.02757289,91325.0,91309.0,0.02068316]
[1767563645501,0.09316,91327.0,91309.0,0.02068316]
[1767563645693,0.02757141,91326.0,91309.0,0.02068316]
[1767563646002,0.02757141,91325.0,91312.0,0.010956]
[1767563646202,0.09316,91327.0,91312.0,0.010956]
[1767563648100,0.06890796,91346.0,91318.0,0.00972716]
[1767563648293,0.00218942,91349.0,91332.0,0.023991]
[1767563648495,0.00218942,91349.0,91333.0,0.010953]
[1767563649294,0.00218942,91349.0,91335.0,0.010953]
[1767563649995,0.00218942,91349.0,91338.0,0.010953]
[1767563650193,0.00989568,91356.0,91338.0,0.010953]
[1767563650405,0.00989568,91356.0,91338.0,0.02068016]
[1767563651502,0.09316,91360.0,91341.0,0.00972716]
[1767563651696,0.19876631,91360.0,91342.0,0.00972716]
[1767563652606,0.19876631,91360.0,91343.0,0.010952]
[1767563653299,0.19876631,91360.0,91344.0,0.00972716]
[1767563653604,0.19876631,91360.0,91345.0,0.010952]
[1767563653797,0.19876631,91360.0,91348.0,0.010952]
[1767563656107,0.09312,91369.0,91350.0,0.00972716]
[1767563656407,0.09560631,91360.0,91352.0,0.00972716]
[1767563657010,0.09560631,91360.0,91348.0,0.02067916]
[1767563657207,0.09560631,91360.0,91348.0,0.00972716]
[1767563660512,0.09560631,91360.0,91347.0,0.010952]
[1767563662818,0.00989568,91365.0,91347.0,0.010952]
[1767563663012,0.10560631,91360.0,91347.0,0.010952]
[1767563663401,0.10560631,91360.0,91349.0,0.010951]
[1767563663602,0.00989568,91365.0,91349.0,0.010951]
[1767563663603,0.03422151,91365.0,91349.0,0.010951]
[1767563664008,0.10560631,91360.0,91349.0,0.010951]
[1767563664215,0.03422151,91365.0,91349.0,0.010951]
[1767563664414,0.10560631,91360.0,91349.0,0.010951]
[1767563664615,0.03422151,91365.0,91349.0,0.010951]
[1767563665018,0.00989568,91366.0,91349.0,0.010951]
[1767563665212,0.00989568,91366.0,91351.0,0.010951]
[1767563666214,0.00989568,91365.0,91346.0,0.023991]
[1767563666416,0.00989568,91359.0,91342.0,0.09316]
[1767563666717,0.02432583,91360.0,91342.0,0.09316]
[1767563666914,0.02432583,91360.0,91342.0,0.10288716]
[1767563668420,0.02432583,91360.0,91343.0,0.010952]
[1767563669116,0.00989568,91358.0,91343.0,0.010952]
[1767563669510,0.02432583,91359.0,91343.0,0.010952]
[1767563669711,0.11655631,91361.0,91343.0,0.010952]
[1767563670819,0.00983477,91358.0,91331.0,0.03321742]
[1767563671022,0.00983477,91339.0,91327.0,0.09312]
[1767563671218,0.00983477,91338.0,91325.0,0.09312]
[1767563671411,0.00983477,91338.0,91325.0,0.104074]
[1767563671613,0.00983477,91338.0,91325.0,0.09312]
[1767563671812,0.02265663,91339.0,91325.0,0.104074]
[1767563672219,0.10560631,91350.0,91329.0,0.010954]
[1767563672220,0.02265663,91345.0,91329.0,0.010954]
[1767563672623,0.10560631,91340.0,91329.0,0.010954]
[1767563673014,0.00983477,91344.0,91329.0,0.010954]
[1767563673325,0.00983477,91344.0,91325.0,0.104074]
[1767563674014,0.10560631,91340.0,91325.0,0.104074]
[1767563681037,0.10560631,91340.0,91327.0,0.010954]
[1767563681848,0.10560631,91340.0,91329.0,0.010954]
[1767563682146,0.02265663,91345.0,91326.0,0.00915831]
[1767563682346,0.00987682,91348.0,91328.0,0.00915831]
[1767563682548,0.02669677,91347.0,91329.0,0.00915831]
[1767563682848,0.02669677,91346.0,91331.0,0.010954]
[1767563683040,0.00987682,91348.0,91331.0,0.010954]
[1767563684748,0.010951,91350.0,91331.0,0.010954]
[1767563684947,0.02669562,91349.0,91331.0,0.010954]
[1767563685252,0.12643413,91350.0,91331.0,0.010954]
[1767563685444,0.00987682,91349.0,91331.0,0.010954]
[1767563687153,0.00987682,91346.0,91331.0,0.010954]
[1767563688153,0.02278043,91347.0,91331.0,0.010954]
[1767563692760,0.03265725,91347.0,91331.0,0.010954]
[1767563693964,0.19872631,91350.0,91333.0,0.010953]
[1767563694153,0.19872631,91350.0,91333.0,0.02011131]
[1767563695562,0.19872631,91350.0,91336.0,0.010953]
[1767563695955,0.20860313,91350.0,91333.0,0.010953]
[1767563698265,0.20860313,91350.0,91335.0,0.010953]
[1767563700772,0.19872631,91350.0,91337.0,0.010953]
[1767563702161,0.00980958,91349.0,91332.0,0.010953]
[1767563702366,0.00980958,91348.0,91328.0,0.03212174]
[1767563702562,0.00980958,91344.0,91325.0,0.09312]
[1767563703166,0.00980958,91344.0,91329.0,0.010954]
[1767563709373,0.00980958,91344.0,91331.0,0.010953]
[1767563709562,0.00980958,91344.0,91333.0,0.010953]
[1767563710473,0.02399335,91345.0,91333.0,0.010953]
[1767563711873,3.5e-07,91345.0,91330.0,0.09312]
[1767563712076,0.09312,91350.0,91332.0,0.03379067]
[1767563712472,0.10292958,91350.0,91332.0,0.03379067]
[1767563712672,0.10292958,91350.0,91338.0,0.010953]
[1767563715879,0.00980958,91349.0,91338.0,0.010953]
[1767563716476,0.03380293,91348.0,91330.0,0.09312]
[1767563716679,0.00980958,91345.0,91331.0,0.010954]
[1767563717282,0.00980958,91345.0,91334.0,0.010953]
[1767563717876,0.00980958,91345.0,91330.0,0.09312]
[1767563718082,0.00980958,91345.0,91333.0,0.010953]
[1767563718273,0.00980958,91345.0,91330.0,0.104074]
[1767563720286,0.00980958,91345.0,91332.0,0.010953]
[1767563721486,0.00980958,91345.0,91334.0,0.010953]
[1767563721684,0.00980958,91349.0,91334.0,0.010953]
[1767563731100,0.02076158,91349.0,91334.0,0.010953]
[1767563731891,0.010952,91347.0,91330.0,0.104074]
[1767563732091,0.010952,91347.0,91332.0,0.010953]
[1767563733397,0.00980958,91349.0,91332.0,0.010953]
[1767563733994,0.00980958,91349.0,91330.0,0.11758163]
[1767563735209,0.00980958,91349.0,91334.0,0.010953]
[1767563738801,0.11313749,91350.0,91334.0,0.010953]
[1767563740512,0.00906649,91349.0,91334.0,0.010953]
[1767563743415,0.010952,91348.0,91331.0,0.02023489]
[1767563745414,0.010952,91348.0,91333.0,0.010953]
[1767563745916,0.00906649,91349.0,91333.0,0.010953]
[1767563746916,0.00906649,91349.0,91335.0,0.010953]
[1767563751121,0.00906649,91349.0,91337.0,0.010953]
[1767563754924,0.09312,91350.0,91331.0,0.00928089]
[1767563754925,0.09312,91350.0,91339.0,0.010953]
[1767563755519,0.09312,91350.0,91336.0,0.010953]
[1767563759626,0.10218649,91350.0,91336.0,0.010953]
[1767563763930,0.00993257,91349.0,91336.0,0.010953]
[1767563764130,0.00993257,91348.0,91333.0,0.010953]
[1767563766632,0.00993257,91348.0,91336.0,0.010953]
[1767563767831,0.00993257,91351.0,91336.0,0.010953]
[1767563768031,0.03617293,91350.0,91336.0,0.010953]
[1767563768233,0.00993257,91350.0,91336.0,0.010953]
[1767563769630,0.010951,91352.0,91336.0,0.010953]
[1767563769931,0.02624027,91351.0,91334.0,0.03487173]
[1767563770133,0.00993257,91352.0,91334.0,0.03487173]
[1767563770324,0.02624012,91351.0,91334.0,0.02496422]
[1767563770526,0.10560071,91350.0,91340.0,0.010952]
[1767563773335,0.10560071,91350.0,91334.0,0.02496422]
[1767563774131,0.10560071,91350.0,91340.0,0.010952]
[1767563774839,0.00993257,91352.0,91340.0,0.010952]
[1767563775041,0.10560071,91350.0,91340.0,0.010952]
[1767563777234,0.10560071,91350.0,91334.0,0.02496422]
[1767563777534,0.10560071,91350.0,91339.0,0.010953]
[1767563777739,0.00993257,91347.0,91333.0,0.010953]
[1767563781644,0.00993257,91347.0,91337.0,0.010953]
[1767563790665,0.11491573,91350.0,91337.0,0.010953]
[1767563795468,0.00931502,91350.0,91337.0,0.010953]
[1767563796171,0.11491573,91350.0,91337.0,0.010953]
[1767563798575,0.11491573,91350.0,91336.0,0.010953]
[1767563799276,0.00995896,91349.0,91336.0,0.010953]
[1767563801869,0.00995896,91349.0,91330.0,0.09312]
[1767563803178,0.00995896,91349.0,91334.0,0.010953]
[1767563808876,0.00995896,91349.0,91330.0,0.09312]
[1767563808877,0.00995896,91349.0,91336.0,0.010953]
[1767563810077,0.00995896,91349.0,91330.0,0.09312]
[1767563810478,0.00995896,91349.0,91336.0,0.010953]
[1767563815180,0.00995896,91349.0,91333.0,0.010953]
[1767563815479,0.00995896,91349.0,91330.0,0.09312]
[1767563815870,0.00995896,91349.0,91330.0,0.11763122]
[1767563816072,0.00995896,91349.0,91330.0,0.12759004]
[1767563816273,0.00995896,91349.0,91335.0,0.010953]
[1767563827996,0.010951,91351.0,91335.0,0.010953]
[1767563828197,0.10560071,91350.0,91337.0,0.010953]
[1767563829194,0.00923506,91349.0,91334.0,0.010953]
[1767563831200,0.00923506,91349.0,91330.0,0.12841687]
[1767563831698,0.010952,91348.0,91331.0,0.02578858]
[1767563831898,0.010952,91347.0,91331.0,0.02578858]
[1767563836502,0.010952,91348.0,91331.0,0.02578858]
[1767563836801,0.00923506,91333.0,91319.0,0.09531014]
[1767563837103,0.02018806,91333.0,91319.0,0.00219014]
[1767563837303,0.00923506,91333.0,91319.0,0.00219014]
[1767563837696,0.00923506,91330.0,91319.0,0.00219014]
[1767563837904,0.00923506,91329.0,91319.0,0.00219014]
[1767563839907,0.00923506,91332.0,91319.0,0.00219014]
[1767563840407,0.00923506,91332.0,91319.0,0.01314514]
[1767563842516,0.00923506,91332.0,91319.0,0.00219014]
[1767563843205,0.02388728,91333.0,91319.0,0.00219014]
[1767563843206,0.00923506,91328.0,91319.0,0.00219014]
[1767563843408,0.00923506,91327.0,91314.0,0.09312]
[1767563843613,0.00923506,91327.0,91313.0,0.010956]
[1767563844803,0.00923506,91327.0,91315.0,0.010955]
[1767563845818,0.00923506,91325.0,91311.0,0.010956]
[1767563846001,0.00923506,91325.0,91313.0,0.010956]
[1767563847313,0.00923506,91325.0,91315.0,0.010955]
[1767563847513,0.104074,91332.0,91315.0,0.010955]
[1767563847730,0.00923506,91330.0,91315.0,0.010955]
[1767563850723,0.00937998,91329.0,91311.0,0.010956]
[1767563851535,0.00937998,91329.0,91313.0,0.010956]
[1767563861243,0.00937998,91329.0,91315.0,0.010955]
[1767563862247,0.00937998,91329.0,91311.0,0.02372251]
[1767563862744,0.00937998,91329.0,91311.0,0.03288817]
[1767563863135,0.00937998,91329.0,91316.0,0.010955]
[1767563864737,0.00937998,91329.0,91318.0,0.010955]
[1767563865843,0.00937998,91329.0,91318.0,0.004955]
[1767563871746,0.03,91330.0,91318.0,0.004955]
[1767563876055,0.03917876,91330.0,91318.0,0.004955]
[1767563878255,0.03917876,91330.0,91314.0,0.010956]
[1767563881953,0.00957569,91327.0,91311.0,0.03467851]
[1767563882158,0.00957569,91327.0,91313.0,0.010956]
[1767563884962,0.05052969,91330.0,91313.0,0.010956]
[1767563886156,0.040954,91330.0,91313.0,0.0344279]
[1767563887163,0.03,91330.0,91315.0,0.010955]
[1767563891769,0.03,91330.0,91313.0,0.0234719]
[1767563892370,0.040954,91330.0,91313.0,0.0234719]
[1767563894373,0.040954,91330.0,91314.0,0.010956]
[1767563894563,0.14660641,91330.0,91314.0,0.010956]
[1767563898186,0.1561821,91330.0,91314.0,0.010956]
[1767563901988,0.00957569,91329.0,91314.0,0.010956]
[1767563903587,0.02052969,91326.0,91310.0,0.104076]
[1767563903782,0.010955,91324.0,91310.0,0.09312]
[1767563904581,0.00957569,91326.0,91311.0,0.010956]
[1767563918490,0.010954,91325.0,91311.0,0.010956]
[1767563918694,0.010954,91325.0,91310.0,0.09312]
[1767563919299,0.00957569,91326.0,91310.0,0.104076]
[1767563919592,0.02052969,91326.0,91310.0,0.104076]
[1767563920901,0.02052969,91326.0,91310.0,0.010956]
[1767563921303,0.010954,91326.0,91310.0,0.010956]
[1767563922403,0.010954,91326.0,91310.0,0.020956]
[1767563924507,0.03,91330.0,91314.0,0.03167564]
[1767563924701,0.13565241,91330.0,91317.0,0.02261068]
[1767563925005,0.13565241,91330.0,91317.0,0.04167564]
[1767563925706,0.13565241,91330.0,91317.0,0.03261068]
[1767563928509,0.13565241,91330.0,91317.0,0.01]
[1767563936409,0.1456351,91330.0,91317.0,0.01]
[1767563938715,0.010954,91329.0,91317.0,0.01]
[1767563940624,0.010954,91327.0,91317.0,0.01]
[1767563941309,0.00962495,91328.0,91317.0,0.01]
[1767563942310,0.010954,91326.0,91317.0,0.01]
[1767563943017,0.02057895,91328.0,91317.0,0.01]
[1767563945420,0.00962495,91328.0,91317.0,0.01]
[1767563959521,0.010954,91329.0,91317.0,0.01]
[1767563960430,0.03,91330.0,91317.0,0.01]
[1767563965230,0.03,91330.0,91314.0,0.04416094]
[1767563965435,0.03,91330.0,91314.0,0.05416094]
[1767563969723,0.03,91330.0,91316.0,0.010955]
[1767563969924,0.03,91330.0,91316.0,0.020955]
[1767563970528,0.010954,91332.0,91316.0,0.020955]
[1767563970732,0.104074,91332.0,91316.0,0.020955]
[1767563971230,0.104074,91332.0,91316.0,0.05109601]
[1767563972331,0.09312,91332.0,91316.0,0.05109601]
[1767563972527,0.09312,91332.0,91318.0,0.010955]
[1767563975642,0.00933113,91342.0,91323.0,0.00906958]
[1767563975946,0.09312,91348.0,91331.0,0.0209468]
[1767563976132,0.0257438,91347.0,91331.0,0.0209468]
[1767563976443,0.0257438,91346.0,91331.0,0.0209468]
[1767563976640,0.09312,91348.0,91331.0,0.0209468]
[1767563976843,0.025564,91347.0,91331.0,0.0209468]
[1767563977044,0.09312,91348.0,91331.0,0.0209468]
[1767563977438,0.10245113,91348.0,91331.0,0.0209468]
[1767563978449,0.00933113,91347.0,91331.0,0.0209468]
[1767563982947,0.00933113,91347.0,91332.0,0.010953]
[1767563984257,0.09312,91348.0,91332.0,0.010953]
[1767563987354,0.00933113,91346.0,91332.0,0.010953]
[1767563996660,0.09312,91348.0,91329.0,0.03001638]
[1767563996859,0.10245113,91348.0,91330.0,0.0209468]
[1767563997260,0.10245113,91348.0,91333.0,0.010953]
[1767563997462,0.00933113,91347.0,91333.0,0.010953]
[1767563999365,0.00933113,91347.0,91330.0,0.0209468]
[1767563999366,0.00933113,91347.0,91332.0,0.010953]
[1767564000663,0.010952,91344.0,91328.0,0.010954]
[1767564000856,0.010952,91344.0,91308.0,0.010956]
[1767564000857,0.00948094,91334.0,91316.0,0.010955]
[1767564001063,0.00948094,91334.0,91318.0,0.010955]
[1767564001265,0.00218942,91349.0,91317.0,0.09312]
[1767564001266,0.010954,91330.0,91317.0,0.09312]
[1767564001468,0.00948094,91327.0,91311.0,0.010956]
[1767564001766,0.00948094,91327.0,91309.0,0.1141566]
[1767564001966,0.00948094,91327.0,91310.0,0.010956]
[1767564002167,0.00948094,91325.0,91309.0,0.0319926]
[1767564003363,0.00948094,91325.0,91312.0,0.010956]
[1767564004069,0.00948094,91325.0,91309.0,0.0319926]
[1767564004267,0.00948094,91325.0,91311.0,0.010956]
[1767564005359,0.00948094,91325.0,91308.0,0.010956]
[1767564005559,0.00948094,91319.0,91302.0,0.010957]
[1767564005764,0.00948094,91315.0,91303.0,0.09312]
[1767564005959,0.00948094,91315.0,91299.0,0.0210366]
[1767564006169,0.00948094,91318.0,91300.0,0.104077]
[1767564006367,0.00948094,91312.0,91300.0,0.09312]
[1767564007262,0.00948094,91315.0,91300.0,0.09312]
[1767564009774,0.00948094,91315.0,91300.0,0.104077]
[1767564012257,0.00948094,91315.0,91300.0,0.09312]
[1767564012464,0.09312,91317.0,91300.0,0.09312]
[1767564013175,0.09312,91317.0,91301.0,0.010957]
[1767564014065,0.10260094,91317.0,91301.0,0.010957]
[1767564015075,0.00948094,91316.0,91301.0,0.010957]
[1767564016676,0.10569286,91311.0,91301.0,0.010957]
[1767564017277,0.10569286,91311.0,91300.0,0.09312]
[1767564032482,0.010956,91314.0,91300.0,0.09312]
[1767564032684,0.10569286,91310.0,91300.0,0.09312]
[1767564036485,0.11664886,91310.0,91300.0,0.09312]
[1767564036680,0.00972476,91305.0,91290.0,0.010958]
[1767564036982,0.10569286,91302.0,91290.0,0.010958]
[1767564037179,0.00972476,91309.0,91290.0,0.010958]
[1767564038080,0.00972476,91309.0,91292.0,0.010958]
[1767564038584,0.13792602,91310.0,91296.0,0.02056292]
[1767564038585,0.10569286,91310.0,91296.0,0.02056292]
[1767564038785,0.00972476,91313.0,91296.0,0.02056292]
[1767564039485,0.00972476,91313.0,91296.0,0.03152092]
[1767564039679,0.00972476,91313.0,91296.0,0.010958]
[1767564042686,0.00972476,91313.0,91298.0,0.010957]
[1767564046087,0.10569286,91310.0,91298.0,0.010957]
[1767564048495,0.00972476,91313.0,91298.0,0.010957]
[1767564051993,0.02068076,91313.0,91298.0,0.010957]
[1767564053697,0.10569286,91310.0,91298.0,0.010957]
[1767564061205,0.00945326,91312.0,91298.0,0.010957]
[1767564062111,0.00442469,99882.0,91306.0,0.02019224]
[1767564062112,0.02040726,91325.0,91306.0,0.02019224]
[1767564062317,0.01827155,91326.0,91306.0,0.02019224]
[1767564062318,0.00945326,91323.0,91306.0,0.02019224]
[1767564062513,0.10569286,91320.0,91306.0,0.02019224]
[1767564062708,0.00945326,91318.0,91305.0,0.010957]
[1767564064322,0.00945326,91318.0,91302.0,0.010957]
[1767564064623,0.00945326,91316.0,91299.0,0.03114924]
[1767564067527,0.00945326,91316.0,91302.0,0.010957]
[1767564067712,0.00945326,91319.0,91302.0,0.010957]
[1767564067916,0.03483815,91318.0,91302.0,0.010957]
[1767564068116,0.10569286,91320.0,91306.0,0.010957]
[1767564068416,0.02538524,91319.0,91306.0,0.010957]
[1767564068611,0.02538524,91318.0,91306.0,0.010957]
[1767564068914,0.00945326,91322.0,91306.0,0.010957]
[1767564069111,0.10569286,91320.0,91306.0,0.010957]
[1767564069316,0.02538519,91319.0,91306.0,0.010957]
[1767564069618,0.02538519,91318.0,91306.0,0.010957]
[1767564069817,0.00945326,91322.0,91306.0,0.010957]
[1767564070018,0.10569286,91320.0,91306.0,0.010957]
[1767564070218,0.02538458,91319.0,91306.0,0.010957]
[1767564070422,0.02538458,91318.0,91306.0,0.010957]
[1767564070726,0.11514612,91320.0,91303.0,0.010957]
[1767564071029,0.03483779,91319.0,91303.0,0.010957]
[1767564071216,0.03483779,91318.0,91303.0,0.010957]
[1767564071418,0.10569286,91320.0,91303.0,0.010957]
[1767564071611,0.02538406,91319.0,91303.0,0.010957]
[1767564071816,0.10569286,91320.0,91303.0,0.010957]
[1767564072019,0.02538406,91319.0,91303.0,0.010957]
[1767564072220,0.10569286,91320.0,91303.0,0.010957]
[1767564072422,0.02538371,91319.0,91303.0,0.010957]
[1767564072620,0.10569286,91320.0,91303.0,0.010957]
[1767564072821,0.02518677,91319.0,91303.0,0.010957]
[1767564073023,0.11514612,91320.0,91303.0,0.010957]
[1767564073225,0.03456095,91319.0,91303.0,0.010957]
[1767564073424,0.00945326,91319.0,91303.0,0.010957]
[1767564073626,0.02040826,91322.0,91306.0,0.010957]
[1767564073922,0.02040826,91322.0,91301.0,0.00939159]
[1767564073923,0.11514612,91320.0,91303.0,0.010957]
[1767564074729,0.010955,91316.0,91302.0,0.02019224]
[1767564074928,0.00945326,91336.0,91316.0,0.02958383]
[1767564075132,0.09316,91337.0,91321.0,0.02019224]
[1767564075317,0.02486932,91336.0,91321.0,0.02019224]
[1767564075516,0.104112,91337.0,91321.0,0.02019224]
[1767564075717,0.02486935,91336.0,91321.0,0.02019224]
[1767564075918,0.010952,91333.0,91317.0,0.00939159]
[1767564076229,0.010952,91333.0,91316.0,0.02019224]
[1767564079636,0.00945326,91335.0,91316.0,0.02019224]
[1767564082033,0.00945326,91335.0,91317.0,0.010954]
[1767564082536,2.6e-07,91335.0,91325.0,0.010953]
[1767564082742,4.2e-07,91349.0,91335.0,0.02019224]
[1767564083033,0.01827155,91348.0,91338.0,0.010953]
[1767564083228,0.01827155,91348.0,91334.0,0.010953]
[1767564083630,0.01827155,91348.0,91330.0,0.010954]
[1767564084335,0.01827155,91348.0,91326.0,0.09316]
[1767564084336,0.01827155,91348.0,91326.0,0.010954]
[1767564084523,0.01827155,91346.0,91326.0,0.010954]
[1767564084723,0.00945326,91339.0,91326.0,0.010954]
[1767564086431,0.00945326,91339.0,91322.0,0.010955]
[1767564087035,0.00232787,91340.0,91322.0,0.010955]
[1767564088336,0.00232787,91340.0,91325.0,0.010954]
[1767564088938,0.01178113,91340.0,91325.0,0.010954]
[1767564090138,0.00945326,91340.0,91325.0,0.010954]
[1767564092033,0.00945326,91340.0,91324.0,0.010954]
[1767564099435,0.00945326,91340.0,91326.0,0.010954]
[1767564102140,0.09312,91343.0,91325.0,0.01779075]
[1767564102346,0.09312,91343.0,91340.0,0.010952]
[1767564102545,4.2e-07,91349.0,91340.0,0.02874275]
[1767564103741,4.2e-07,91349.0,91337.0,0.010953]
[1767564103947,4.2e-07,91349.0,91335.0,0.01779075]
[1767564104844,4.2e-07,91349.0,91339.0,0.010953]
[1767564110041,4.2e-07,91349.0,91339.0,0.02874375]
[1767564110352,4.2e-07,91349.0,91340.0,0.01779075]
[1767564110542,4.2e-07,91349.0,91341.0,0.010952]
[1767564111539,4.2e-07,91349.0,91341.0,0.02874275]
[1767564112549,4.2e-07,91349.0,91343.0,0.010952]
[1767564112736,4.2e-07,91350.0,91342.0,0.02773485]
[1767564112941,4.2e-07,91350.0,91343.0,0.0099441]
[1767564113154,4.2e-07,91350.0,91346.0,0.01779075]
[1767564113449,0.09312,91357.0,91349.0,0.02874175]
[1767564113643,0.09312,91357.0,91350.0,0.01779075]
[1767564113954,0.09312,91357.0,91350.0,0.00179075]
[1767564114141,0.09312,91357.0,91349.0,0.010951]
[1767564117151,0.09312,91357.0,91352.0,0.010951]
[1767564117346,0.08312,91357.0,91353.0,0.01779075]
[1767564117550,0.00934764,91370.0,91354.0,0.010951]
[1767564117850,0.11718984,91369.0,91356.0,0.01779075]
[1767564118044,0.02406984,91368.0,91356.0,0.01779075]
[1767564119344,0.02406984,91368.0,91351.0,0.03868585]
[1767564119747,0.03501884,91368.0,91351.0,0.03868585]
[1767564119946,0.010949,91368.0,91351.0,0.03868585]
[1767564120152,0.010949,91368.0,91351.0,0.02773485]
[1767564121658,0.010949,91368.0,91351.0,0.01373485]
[1767564122455,0.09312,91369.0,91351.0,0.01373485]
[1767564122658,0.10228991,91369.0,91351.0,0.01373485]
[1767564123160,0.10228991,91369.0,91352.0,0.010951]
[1767564123552,0.03322464,91368.0,91352.0,0.010951]
[1767564123751,0.02405473,91367.0,91352.0,0.010951]
[1767564123952,0.00916991,91368.0,91352.0,0.010951]
[1767564124152,0.02405463,91367.0,91352.0,0.010951]
[1767564124456,0.00916991,91368.0,91352.0,0.010951]
[1767564124662,0.0240533,91367.0,91352.0,0.010951]
[1767564124962,0.00916991,91368.0,91352.0,0.010951]
[1767564125173,0.02405338,91367.0,91352.0,0.010951]